[Event "17th Paracin Open 2024"]
[Site "Paracin"]
[Date "2024.07.06"]
[Round "4.12"]
[White "Atalik, Suat"]
[Black "Bashirli, Nail"]
[Result "1-0"]
[ECO "E32"]
[WhiteElo "2450"]
[BlackElo "2327"]
[Annotator "TA"]
[PlyCount "87"]
[EventDate "2024.07.02"]
[EventType "swiss"]
[EventCountry "SRB"]
[SourceTitle "playchess.com"]
[Source "ChessBase"]
[SourceQuality "1"]
[TimeControl "5400+30"]

{[%evp 9,87,16,18,0,22,33,35,35,31,28,29,17,25,21,29,27,29,19,29,29,38,18,42,38,47,53,52,50,55,67,61,46,46,45,61,50,57,49,49,28,60,41,63,29,109,104,105,108,108,104,97,108,100,94,75,22,23,16,20,20,106,108,136,132,188,187,177,184,189,193,218,220,316,312,466,468,620,620,594,594]} 1. d4 {[%emt 0:00:03]} Nf6 {[%emt 0:08:03]} 2. c4 {[%emt 0:00:18]} e6 {[%emt 0:00:05]} 3. Nc3 {[%emt 0:00:18]} Bb4 {[%emt 0:00:23]} 4. Qc2 {[%emt 0:00:21]} d6 {[%emt 0:00:20]} 5. e3 {[%emt 0:00:56]} O-O {[%emt 0:05:04]} 6. Nge2 {[%emt 0:02:51]} b6 {[%emt 0:08:05]} 7. a3 {[%emt 0:02:04]} Bxc3+ {[%emt 0:03:57]} 8. Nxc3 {[%emt 0:00:09] White is slightly better.} Bb7 {[%emt 0:00:38]} 9. f3 {[%emt 0:01:45]} c5 {[%emt 0:00:51]} 10. dxc5 {[%emt 0:00:27]} bxc5 {[%emt 0:03:17]} 11. Be2 {[%emt 0:00:26]} Qe7 {[%emt 0:18:04]} 12. O-O {[%emt 0:03:05]} d5 {[%emt 0:05:18]} 13. Rd1 {[%emt 0:08:00]} Rd8 {[%emt 0:04:54]} 14. Na4 {[%emt 0:04:17] And now cxd5 would win.} Nbd7 {[%emt 0:01:19]} 15. Bd2 {[%emt 0:00:22][%cal Bc1d2,Bd2a5,Ba5e1,Be1g3,Bg3e5][%mdl 32]} Ba6 {[%emt 0:14:33]} 16. Ba5 {[%emt 0:05:04]} Rdc8 {[%emt 0:04:46]} 17. b3 {[%emt 0:01:15]} Rab8 {[%emt 0:00:38]} 18. Be1 {[%emt 0:05:17]} Nb6 {[%emt 0:02:55]} 19. Bg3 {[%emt 0:02:59]} Rb7 {[%emt 0:02:02]} 20. Nxb6 {[%emt 0:00:52]} Rxb6 {[%emt 0:01:19]} 21. Rab1 {[%emt 0:06:36]} Rd8 {[%emt 0:02:39]} 22. Be5 {[%emt 0:05:23]} Ne8 {[%emt 0:05:10]} 23. Bd3 {[%emt 0:09:00]} h6 {[%emt 0:00:38]} 24. Qc3 {[%emt 0:05:11]} Qg5 {[%emt 0:05:13]} 25. Bf4 {[%emt 0:04:08] This pair of bishops is nice.} Qe7 {[%emt 0:01:28]} 26. Bc2 {[%emt 0:02:33]} (26. Rbc1 {simplifies} dxc4 27. Bxc4 Bxc4 28. Qxc4 Rxd1+ 29. Rxd1 e5 30. Bg3) 26... dxc4 {[%emt 0:00:40] [#]} (26... Nd6 $11 {remains equal.}) 27. Rxd8 $1 $16 {[%emt 0:06:51]} ({Don't play} 27. bxc4 f6 $14) 27... Qxd8 {[%emt 0:00:04]} 28. Rd1 {[%emt 0:00:06]} (28. bxc4 $2 {loses.} Rxb1+ 29. Bxb1 Qd1+ 30. Kf2 Qxb1 $19) 28... Qf6 {[%emt 0:00:19]} 29. Be5 {[%emt 0:00:41] White is much more active.} Qh4 {[%emt 0:01:36]} 30. bxc4 {[%emt 0:06:09]} Qxc4 {[%emt 0:00:36]} 31. Qxc4 {[%emt 0:08:10]} (31. Bxg7 {feels hotter.} h5 32. h4 Rd6 33. Qxc4 Bxc4 34. Be5) 31... Bxc4 {[%emt 0:00:03]} 32. Ba4 {[%emt 0:00:48]} (32. Rd8 $16 {[%cal Rd8e8]} Bb5 33. a4) 32... f6 $1 $11 {[%emt 0:00:54]} 33. Bxe8 {[%emt 0:00:24]} fxe5 {[%emt 0:00:19][%mdl 4096] Endgame. KRB-KRB} 34. Bg6 {[%emt 0:01:37]} Rb8 {[%emt 0:00:48] Wards off Rd8+} (34... Kf8 $1 $11 {keeps the balance.}) 35. Rc1 $16 {[%emt 0:00:54]} Ba6 {[%emt 0:00:29]} 36. Rxc5 {[%emt 0:01:02][%cal Oc5c7]} Kf8 {[%emt 0:00:29]} (36... Rc8 $16 37. Ra5 (37. Rxe5 Bc4 $16) 37... Rc6 38. Rxe5 Bc4) 37. Rxe5 $18 {[%emt 0:02:07]} Ke7 {[%emt 0:00:23] [#]} 38. Ra5 $1 {[%emt 0:00:29]} Rb6 {[%emt 0:00:01]} 39. h4 {[%emt 0:00:51][%cal Bh2h4,Bh4h5][%mdl 32]} Kf6 {[%emt 0:00:45]} 40. h5 {[%emt 0:00:11]} Rd6 {[%emt 0:00:31]} (40... e5 {was worth a try.} 41. a4 Rd6) 41. e4 {[%emt 0:01:24][%cal Be3e4,Be4e5][%mdl 32] White wants to mate with e5+.} Rd1+ {[%emt 0:00:51]} (41... Ke7 $142 42. Kh2 Kd7) 42. Kh2 {[%emt 0:00:24] White is clearly winning.} Bf1 {[%emt 0:00:12]} 43. e5+ {[%emt 0:00:49]} Ke7 {[%emt 0:00:49]} 44. Rxa7+ {[%emt 0:00:06] Weighted Error Value: White=0.07 (flawless) /Black=0.23 (precise) .  Mistake:       	White=1     	Black=5      Inaccurate:     	White=1     	Black=2      OK:         	White=18    	Black=13     Best:        	White=2     	Black=1      Strong:       	White=2     	Black=1} 1-0

[Event "17th Paracin Open 2024"]
[Site "Paracin"]
[Date "2024.07.06"]
[Round "4.13"]
[White "Ristic, Luka"]
[Black "Radovanovic, Nikola"]
[Result "0-1"]
[ECO "C78"]
[WhiteElo "2318"]
[BlackElo "2441"]
[Annotator "RC"]
[PlyCount "56"]
[EventDate "2024.07.02"]
[EventType "swiss"]
[EventCountry "SRB"]
[SourceTitle "playchess.com"]
[Source "ChessBase"]
[SourceQuality "1"]
[TimeControl "5400+30"]

1. e4 {[%emt 0:00:20]} e5 {[%emt 0:03:07]} 2. Nf3 {[%emt 0:00:43]} Nc6 {[%emt 0:00:08]} 3. Bb5 {[%emt 0:04:29]} a6 {[%emt 0:01:32]} 4. Ba4 {[%emt 0:00:36]} Nf6 {[%emt 0:00:54]} 5. O-O {[%emt 0:00:22]} b5 {[%emt 0:03:21]} 6. Bb3 {[%emt 0:00:06]} Bc5 {[%emt 0:00:06]} 7. c3 {[%emt 0:08:19]} d6 {[%emt 0:02:41]} 8. d4 {[%emt 0:00:38]} Bb6 {[%emt 0:00:07]} 9. Be3 {[%emt 0:03:59]} O-O {[%emt 0:02:51]} 10. h3 {[%emt 0:07:53]} exd4 {[%emt 0:10:59]} 11. cxd4 {[%emt 0:05:16]} Nxe4 {[%emt 0:00:11]} 12. Bd5 {[%emt 0:05:41]} Qe8 {[%emt 0:00:30]} 13. Bg5 {[%emt 0:14:51]} Nxg5 {[%emt 0:09:22]} 14. Nxg5 {[%emt 0:00:08]} Bf5 {[%emt 0:01:28]} 15. Qh5 {[%emt 0:16:36]} Qd7 {[%emt 0:19:54]} 16. Rc1 {[%emt 0:08:09]} Nxd4 {[%emt 0:02:00]} 17. Bxa8 {[%emt 0:00:34]} Bg6 {[%emt 0:03:29]} 18. Qd1 {[%emt 0:00:48]} Rxa8 {[%emt 0:00:46]} 19. Nc3 {[%emt 0:01:05]} Re8 {[%emt 0:01:21]} 20. a3 {[%emt 0:06:26]} h6 {[%emt 0:02:47]} 21. Nf3 {[%emt 0:01:55]} Bh5 {[%emt 0:00:22]} 22. Nd5 {[%emt 0:01:18]} Nxf3+ {[%emt 0:03:28]} 23. gxf3 {[%emt 0:00:09]} Qxh3 {[%emt 0:01:00]} 24. Qf1 {[%emt 0:01:04]} Qh4 {[%emt 0:01:34]} 25. Qg2 {[%emt 0:01:52]} Re5 {[%emt 0:01:10]} 26. Nxb6 {[%emt 0:01:46]} Rg5 {[%emt 0:00:19]} 27. Rxc7 {[%emt 0:01:56]} Bxf3 {[%emt 0:00:22]} 28. Qxg5 {[%emt 0:00:10]} Qh1# {[%emt 0:00:07]} 0-1

[Event "17th Paracin Open 2024"]
[Site "Paracin"]
[Date "2024.07.06"]
[Round "4.14"]
[White "Sedlak, Nikola"]
[Black "Bicer, Atakan Mert"]
[Result "1/2-1/2"]
[ECO "A11"]
[WhiteElo "2426"]
[BlackElo "2313"]
[Annotator "TA"]
[PlyCount "107"]
[EventDate "2024.07.02"]
[EventType "swiss"]
[EventCountry "SRB"]
[SourceTitle "playchess.com"]
[Source "ChessBase"]
[SourceQuality "1"]
[TimeControl "5400+30"]

{[%evp 11,107,17,24,22,27,11,22,25,31,28,54,39,49,18,22,23,23,19,31,30,25,14,24,0,33,34,39,35,35,0,0,0,0,-7,0,0,0,0,0,-6,-6,-4,0,0,0,0,0,0,0,0,0,-3,0,0,0,-8,0,0,0,0,0,0,0,0,0,0,42,42,32,30,33,33,32,20,43,0,0,0,0,0,0,0,0,0,0,0,0,0,0,0,0,0,0,2,11,0,0,0]} 1. Nf3 {[%emt 0:02:19]} Nf6 {[%emt 0:01:59]} 2. g3 {[%emt 0:00:12]} d5 {[%emt 0:00:15]} 3. Bg2 {[%emt 0:00:11]} Bf5 {[%emt 0:00:09]} 4. O-O {[%emt 0:00:56]} e6 {[%emt 0:00:22]} 5. c4 {[%emt 0:00:19]} c6 {[%emt 0:00:12]} 6. Qb3 {[%emt 0:01:05]} Qb6 {[%emt 0:00:10]} 7. d3 {[%emt 0:01:23]} Nbd7 {[%emt 0:00:07]} 8. cxd5 {[%emt 0:03:12]} Qxb3 {[%emt 0:03:39]} 9. axb3 {[%emt 0:00:09] [#] dxc6 would now be deadly.} exd5 {[%emt 0:00:11]} 10. Bd2 {[%emt 0:00:16]} Bc5 {[%emt 0:08:58] Dodges Nd4} 11. b4 {[%emt 0:03:40]} Bb6 {[%emt 0:00:08]} 12. Bc3 {[%emt 0:09:46]} O-O {[%emt 0:00:19]} 13. Nbd2 {[%emt 0:01:06]} Rfe8 {[%emt 0:01:08]} 14. Rfe1 {[%emt 0:01:07]} Bg6 {[%emt 0:11:28]} 15. Nb3 {[%emt 0:01:25]} Re7 {[%emt 0:00:30]} 16. Nh4 {[%emt 0:11:43]} Rae8 {[%emt 0:14:16]} 17. Nxg6 {[%emt 0:00:55]} hxg6 {[%emt 0:00:09]} 18. e3 {[%emt 0:04:31]} Nf8 {[%emt 0:16:03]} 19. h4 {[%emt 0:09:03]} Ne6 {[%emt 0:02:31]} 20. b5 {[%emt 0:05:43]} cxb5 {[%emt 0:04:16]} 21. Bxf6 {[%emt 0:01:12]} gxf6 22. Bxd5 Rd8 {[%emt 0:02:09]} 23. Bxe6 {[%emt 0:00:39]} fxe6 {[%emt 0:02:05]} 24. d4 {[%emt 0:41:38]} e5 {[%emt 0:01:57]} 25. dxe5 {[%emt 0:00:00]} Rxe5 {[%emt 0:02:25]} 26. Rec1 {[%emt 0:00:00]} Rd3 {[%emt 0:04:05]} 27. Nd4 {[%emt 0:00:00]} a6 {[%emt 0:01:23]} 28. Rc8+ {[%emt 0:00:00]} Kf7 {[%emt 0:02:58]} 29. Nf3 {[%emt 0:00:00]} Rc5 {[%emt 0:02:00]} 30. Rxc5 {[%emt 0:00:00]} Bxc5 $11 {[%emt 0:00:07][%mdl 4096] Endgame. KRB-KRN} 31. Kf1 {[%emt 0:00:00]} Bb6 {[%emt 0:05:39]} 32. Ke2 {[%emt 0:00:00]} Rb3 {[%emt 0:00:18]} 33. Ra2 {[%emt 0:00:00]} a5 {[%emt 0:00:14][%cal Ba6a5,Ba5a4][%mdl 32]} 34. Nd2 {[%emt 0:00:00]} Rb4 {[%emt 0:00:06]} 35. Kd3 {[%emt 0:00:00]} f5 {[%emt 0:01:20]} 36. b3 {[%emt 0:00:00]} a4 {[%emt 0:03:37]} 37. Rc2 {[%emt 0:00:00]} Bd8 {[%emt 0:04:41]} 38. Rc8 {[%emt 0:00:00]} Ke8 {[%emt 0:02:26]} 39. Rb8 {[%emt 0:00:00]} (39. Kc3 $5 Rg4 $8 40. Rb8 $14) 39... b6 {[%emt 0:00:27]} 40. Rb7 {[%emt 0:00:00]} (40. Kc3 $5 Rg4 $8 41. e4 $14) 40... Rg4 {[%emt 0:01:05]} 41. bxa4 {[%emt 0:00:00]} Rxa4 {[%emt 0:00:41]} (41... bxa4 $2 {loses.} 42. Nc4 $18) 42. Rg7 {[%emt 0:00:00]} Bf6 {[%emt 0:01:27]} 43. Rg8+ {[%emt 0:00:00]} Kf7 {[%emt 0:00:46] The position is equal.} 44. Rb8 {[%emt 0:00:00]} Ra3+ {[%emt 0:00:18]} 45. Ke2 {[%emt 0:00:00]} Ra6 {[%emt 0:00:40]} 46. Rc8 {[%emt 0:00:00]} b4 {[%emt 0:00:48]} 47. Rc7+ {[%emt 0:00:00]} Be7 {[%emt 0:00:42]} 48. Nb3 {[%emt 0:02:17]} Ra2+ {[%emt 0:00:20]} 49. Kf3 {[%emt 0:00:58]} Ra3 {[%emt 0:01:43]} 50. Nd4 {[%emt 0:00:44]} Ke8 {[%emt 0:00:27]} 51. h5 {[%emt 0:00:10]} gxh5 {[%emt 0:00:23] Threatens to win with ...Bc5.} 52. Nxf5 {[%emt 0:00:11]} Bf8 {[%emt 0:01:07]} 53. Rc8+ {[%emt 0:04:58]} Kf7 {[%emt 0:00:21]} 54. Rc7+ {[%emt 0:01:01] Weighted Error Value: White=0.04 (flawless) /Black=0.05 (flawless) .  Inaccurate:     	White=3     	Black=3      OK:         	White=25    	Black=18     Best:        	---       	Black=2} 1/2-1/2

[Event "17th Paracin Open 2024"]
[Site "Paracin"]
[Date "2024.07.06"]
[Round "4.15"]
[White "Agibileg, Uurtsaikh"]
[Black "Devnani Kush"]
[Result "1-0"]
[ECO "E53"]
[WhiteElo "2441"]
[BlackElo "2250"]
[Annotator "TA"]
[PlyCount "67"]
[EventDate "2024.07.02"]
[EventType "swiss"]
[EventCountry "SRB"]
[SourceTitle "playchess.com"]
[Source "ChessBase"]
[SourceQuality "1"]
[TimeControl "5400+30"]

{[%evp 18,67,0,0,27,9,13,12,20,21,26,20,20,7,0,2,0,0,16,0,16,22,35,31,43,34,41,43,37,20,14,12,5,8,9,0,56,47,38,14,11,47,22,22,166,174,317,251,1419,1382,29995,29996]} 1. d4 {[%emt 0:00:06]} Nf6 {[%emt 0:00:52]} 2. c4 {[%emt 0:00:36]} e6 {[%emt 0:00:05]} 3. Nc3 {[%emt 0:00:22]} Bb4 {[%emt 0:00:23]} 4. e3 {[%emt 0:00:29]} O-O {[%emt 0:00:23]} 5. Bd3 {[%emt 0:00:25]} d5 {[%emt 0:00:15]} 6. a3 {[%emt 0:00:30]} Bxc3+ {[%emt 0:00:28]} 7. bxc3 {[%emt 0:00:10]} dxc4 {[%emt 0:00:09]} 8. Bxc4 {[%emt 0:00:18]} c5 {[%emt 0:00:10]} 9. Nf3 {[%emt 0:00:34]} Qc7 {[%emt 0:00:28]} 10. Be2 {[%emt 0:00:21]} cxd4 {[%emt 0:00:30]} 11. cxd4 {[%emt 0:01:46]} b6 {[%emt 0:00:07]} 12. O-O {[%emt 0:05:22]} Ba6 {[%emt 0:00:08] The position is equal.} 13. Bb2 {[%emt 0:03:57]} Bxe2 {[%emt 0:13:19]} 14. Qxe2 {[%emt 0:00:14]} Nbd7 {[%emt 0:00:04]} 15. e4 {[%emt 0:05:00]} Rfc8 {[%emt 0:03:41]} 16. Rfc1 {[%emt 0:02:58] Wards off Qc2} Qb7 {[%emt 0:01:16]} 17. Re1 {[%emt 0:02:04]} b5 {[%emt 0:09:00]} 18. Rad1 {[%emt 0:04:55][%cal Od4d5]} Rab8 {[%emt 0:25:41]} 19. h3 {[%emt 0:16:56]} b4 {[%emt 0:19:02]} 20. axb4 {[%emt 0:01:56]} Qxb4 {[%emt 0:00:43]} 21. Ba1 {[%emt 0:00:16]} Rc4 {[%emt 0:05:23]} 22. Qd3 {[%emt 0:52:15]} Rbc8 {[%emt 0:03:15]} 23. Rb1 {[%emt 0:00:00] Dodges a5} Qa5 {[%emt 0:03:42]} 24. Red1 {[%emt 0:00:00]} h6 {[%emt 0:03:29]} 25. Nd2 {[%emt 0:00:00][%cal Bf3d2,Bd2b3,Bb3d4][%mdl 32]} Rc2 {[%emt 0:00:59]} 26. d5 {[%emt 0:02:00]} (26. Nf1 {simplifies} Ra2 27. Bb2 Qa6 28. Qxa6 Rxa6 29. f3) 26... exd5 {[%emt 0:01:01]} ({Black should play} 26... e5 $11) 27. e5 $1 $14 {[%emt 0:00:00]} Ne8 {[%emt 0:09:27]} 28. Nb3 {[%emt 0:00:00][%mdl 1024] White has compensation.} Qa2 {[%emt 0:00:00]} 29. Qf5 {[%emt 0:00:00][%cal Ob3d4] Strongly threatening Nd4!} Nf8 {[%emt 0:00:00] ...Rb8 is the strong threat.} 30. Nd4 $1 {[%emt 0:00:00]} g6 {[%emt 0:01:30] [#] A mistake that costs the game.} (30... R2c7 $1 $11 {and Black is okay.}) 31. Qf4 $1 $36 {[%emt 0:02:30][%mdl 2048] White has strong initiative.} R8c4 {[%emt 0:00:30]} (31... g5 {was worth a try.} 32. Qf3 R2c7) 32. Rb7 {[%emt 0:00:30]} ({Less strong is} 32. Qxh6 Rxf2 33. Qg5 Ng7 $16) (32. Qe3 Nc7 33. e6 (33. Nxc2 Rxc2 34. Rb7 Nce6 $18) 33... Ncxe6 34. Nxe6 (34. Nxc2 Rxc2 35. Rb8 Rc4 $18) 34... Nxe6 $18) 32... Nc7 $2 {[%emt 0:00:00]} (32... Rc7 33. Rb8 g5) 33. e6 {[%emt 0:00:00]} (33. Qxh6 $2 {is the wrong capture.} Rxf2 34. Qg5 Nce6 $19) 33... Nfxe6 {[%emt 0:00:00]} 34. Rb8+ {[%emt 0:01:00] Weighted Error Value: White=0.08 (flawless) /Black=0.42.  Mistake:       	---       	Black=4      Inaccurate:     	---       	Black=1      OK:         	White=9     	Black=10     Best:        	White=1     	---        Strong:       	White=3     	---} 1-0

[Event "17th Paracin Open 2024"]
[Site "Paracin"]
[Date "2024.07.06"]
[Round "4.16"]
[White "Albers, Sasa"]
[Black "Harsh Suresh"]
[Result "0-1"]
[ECO "C78"]
[WhiteElo "2309"]
[BlackElo "2426"]
[Annotator "TA"]
[PlyCount "84"]
[EventDate "2024.07.02"]
[EventType "swiss"]
[EventCountry "SRB"]
[SourceTitle "playchess.com"]
[Source "ChessBase"]
[SourceQuality "1"]
[TimeControl "5400+30"]

{[%evp 12,84,50,52,46,20,29,31,39,41,36,15,19,4,11,13,17,8,16,0,0,0,0,0,9,1,0,-27,-38,-41,-29,-25,0,0,0,0,0,0,0,0,0,0,0,0,0,0,0,-12,9,-20,0,-8,-8,-8,-18,-13,-18,-27,-22,-18,0,0,0,0,0,0,7,0,0,-17,-12,-16,-27,-952,-900]} 1. e4 {[%emt 0:06:15]} e5 {[%emt 0:00:28]} 2. Nf3 {[%emt 0:00:04]} Nc6 {[%emt 0:00:06]} 3. Bb5 {[%emt 0:00:05]} a6 {[%emt 0:00:08]} 4. Ba4 {[%emt 0:00:04]} Nf6 {[%emt 0:00:17]} 5. O-O {[%emt 0:00:07]} b5 {[%emt 0:00:23]} 6. Bb3 {[%emt 0:00:05]} Bc5 {[%emt 0:00:05]} 7. a4 {[%emt 0:01:17]} Rb8 {[%emt 0:00:26]} 8. Nxe5 {[%emt 0:00:31]} Nxe5 {[%emt 0:01:03]} 9. d4 {[%emt 0:00:06]} Bxd4 {[%emt 0:00:20] White is slightly better.} 10. Qxd4 {[%emt 0:00:06]} d6 {[%emt 0:00:06]} 11. axb5 {[%emt 0:00:29]} axb5 {[%emt 0:00:29]} 12. f4 {[%emt 0:00:07]} Nc6 {[%emt 0:07:32]} 13. Qc3 {[%emt 0:00:14] [#] Black must now prevent e5.} Ne7 {[%emt 0:01:05][%cal Oe8g8]} 14. e5 {[%emt 0:00:11]} Ne4 {[%emt 0:03:05]} 15. Qe1 {[%emt 0:00:08]} Nc5 {[%emt 0:18:24]} 16. Ba2 {[%emt 0:00:33][%cal Of4f5] f5! would now be deadly.} O-O {[%emt 0:03:13]} 17. Be3 {[%emt 0:00:18]} Bf5 {[%emt 0:04:13]} 18. b4 {[%emt 0:09:28]} Ne6 {[%emt 0:07:49]} 19. c3 {[%emt 0:22:08]} dxe5 {[%emt 0:12:56]} 20. fxe5 {[%emt 0:00:05]} Bd3 {[%emt 0:00:27]} 21. Rf2 {[%emt 0:09:44]} Bc4 {[%emt 0:00:27]} 22. Bxc4 {[%emt 0:01:05]} bxc4 {[%emt 0:00:02]} 23. Na3 {[%emt 0:03:01]} Qd5 {[%emt 0:02:53][%cal Of8d8]} 24. Rd1 {[%emt 0:01:28]} Qc6 {[%emt 0:13:16]} 25. Qe2 {[%emt 0:27:12]} Nd5 {[%emt 0:10:50]} 26. Qf3 {[%emt 0:00:22]} Rbd8 {[%emt 0:00:12][%cal Od5e3] [#] Hoping for ...Nxe3!} 27. Nc2 {[%emt 0:05:19]} Qa8 {[%emt 0:02:45]} 28. Bd4 {[%emt 0:04:55]} h6 {[%emt 0:03:20]} 29. h4 {[%emt 0:05:36]} Rd7 {[%emt 0:03:45]} 30. Rfd2 {[%emt 0:01:23]} (30. Bc5 {seems wilder.} Re8 31. Ne3 Nb6 32. Qxa8 Rxd1+ 33. Nxd1 Rxa8 34. Bxb6 cxb6 35. Ne3) 30... Rfd8 {[%emt 0:01:04]} 31. Ne3 {[%emt 0:02:09]} Nxe3 {[%emt 0:00:38]} 32. Qxa8 {[%emt 0:00:43]} Rxa8 {[%emt 0:00:16]} 33. Bxe3 {[%emt 0:00:03]} Rxd2 {[%emt 0:00:26]} 34. Rxd2 $11 {[%emt 0:00:24][%mdl 4096] Endgame. KRB-KRN} Ra3 {[%emt 0:00:43]} 35. Rc2 {[%emt 0:00:49]} Kh7 {[%emt 0:02:21]} 36. g4 {[%emt 0:00:57]} c6 {[%emt 0:01:15]} 37. Kf2 {[%emt 0:00:31]} Nc7 {[%emt 0:00:10]} 38. Bc1 {[%emt 0:00:42]} Ra8 {[%emt 0:01:09]} 39. Ke3 {[%emt 0:00:18]} Nb5 {[%emt 0:00:10]} 40. Rf2 {[%emt 0:00:51]} Re8 {[%emt 0:00:34]} 41. Rxf7 {[%emt 0:00:24]} Rxe5+ {[%emt 0:00:09]} 42. Kf4 $2 {[%emt 0:00:28][%mdl 8192]} (42. Kf3 $11) 42... Re1 {[%emt 0:00:12] Weighted Error Value: White=0.24 (precise) /Black=0.04 (flawless) .  Loses game:     	White=1     	---        Inaccurate:     	White=3     	---        OK:         	White=19    	Black=15     Best:        	---       	Black=2} 0-1

[Event "17th Paracin Open 2024"]
[Site "Paracin"]
[Date "2024.07.06"]
[Round "4.17"]
[White "Pranav K P"]
[Black "Eren, Ataberk"]
[Result "1-0"]
[ECO "E42"]
[WhiteElo "2223"]
[BlackElo "2407"]
[Annotator "TA"]
[PlyCount "69"]
[EventDate "2024.07.02"]
[EventType "swiss"]
[EventCountry "SRB"]
[SourceTitle "playchess.com"]
[Source "ChessBase"]
[SourceQuality "1"]
[TimeControl "5400+30"]

{[%evp 15,69,22,28,3,0,9,25,33,55,37,27,7,14,15,12,6,10,17,17,9,9,0,22,0,0,0,0,-3,0,-23,-31,-18,-12,-16,-15,-70,18,29,246,213,244,236,219,229,284,302,693,681,667,547,664,669,708,651,731,713]} 1. d4 {[%emt 0:00:41]} Nf6 {[%emt 0:00:06]} 2. c4 {[%emt 0:00:09]} e6 {[%emt 0:01:08]} 3. Nc3 {[%emt 0:00:13]} Bb4 {[%emt 0:00:05]} 4. e3 {[%emt 0:00:10]} c5 {[%emt 0:00:07]} 5. Nge2 {[%emt 0:02:14]} cxd4 {[%emt 0:01:43]} 6. exd4 {[%emt 0:00:23]} O-O {[%emt 0:00:21]} 7. a3 {[%emt 0:00:43]} Be7 {[%emt 0:00:48]} 8. Nf4 {[%emt 0:02:37]} d5 {[%emt 0:03:55]} 9. Be3 {[%emt 0:02:14]} dxc4 {[%emt 0:01:41]} 10. Bxc4 {[%emt 0:01:01]} a6 {[%emt 0:09:35]} 11. O-O {[%emt 0:06:35] White has an edge.} Bd6 {[%emt 0:02:01] Strongly threatening ...Qc7.} 12. Bb3 {[%emt 0:08:59]} Nc6 {[%emt 0:05:20]} 13. d5 {[%emt 0:07:15]} exd5 {[%emt 0:02:12]} 14. Nfxd5 {[%emt 0:04:46] aiming for Bb6.} (14. Ncxd5 {is interesting.} Ng4 15. Bb6 Qh4 16. h3) 14... Ng4 {[%emt 0:02:49]} 15. Bf4 {[%emt 0:09:01]} Bxf4 {[%emt 0:00:25]} 16. Nxf4 {[%emt 0:00:02]} Qh4 {[%emt 0:03:25][%csl Gg4][%cal Rh4h2]} (16... Qg5 {simplifies} 17. Ncd5 Nf6 18. g3 Nxd5 19. Bxd5 Qf6) 17. h3 {[%emt 0:02:01][%cal Og2g3]} Nge5 $132 {[%emt 0:04:09][%mdl 2048] Black is not keeping still} 18. Ncd5 {[%emt 0:07:12]} Bf5 {[%emt 0:12:30]} 19. Qh5 {[%emt 0:10:26]} Qxh5 {[%emt 0:00:14]} 20. Nxh5 {[%emt 0:00:02]} Rad8 {[%emt 0:13:48]} 21. Rfe1 {[%emt 0:03:55][%cal Od5e7]} Nd3 {[%emt 0:03:18][%csl LRb2,LRe1]} 22. Ne7+ {[%emt 0:01:21]} (22. Re3 $5) 22... Nxe7 {[%emt 0:00:46]} 23. Rxe7 {[%emt 0:00:03]} Bg6 {[%emt 0:01:26]} 24. Ng3 {[%emt 0:01:02]} b5 {[%emt 0:02:03]} 25. Ra7 {[%emt 0:05:18]} ({Better is} 25. a4 $11) 25... Rd6 {[%emt 0:05:50]} (25... Ra8 $1 $15 26. Rxa8 Rxa8) 26. Rd1 $11 {[%emt 0:01:30] And now f4 would win.} Rfd8 $2 {[%emt 0:09:38] [#] This costs Black the game.} (26... Rdd8 $11 {and Black stays safe.}) 27. f4 $1 $18 {[%emt 0:02:04][%cal Bf2f4,Bf4f5][%mdl 544] f5 would now be deadly.} h6 {[%emt 0:05:08]} 28. f5 {[%emt 0:00:17]} Bh7 {[%emt 0:00:03]} 29. Bxf7+ {[%emt 0:01:09]} Kf8 {[%emt 0:02:28]} 30. Be6 {[%emt 0:01:55] Prevents R6d7} Bg8 $2 {[%emt 0:00:19]} (30... Ne5 31. Re1 Rd1 32. Rxd1 Rxd1+ 33. Nf1 Re1) 31. Nh5 {[%emt 0:04:50] White is clearly winning.} Re8 {[%emt 0:06:22]} 32. Nf4 {[%emt 0:02:30][%cal Rf4g6]} Bxe6 {[%emt 0:00:32]} 33. Nxe6+ {[%emt 0:00:02]} Kg8 {[%emt 0:00:05]} 34. Rxg7+ {[%emt 0:00:04]} Kh8 {[%emt 0:00:02]} 35. Rg3 {[%emt 0:00:09] Weighted Error Value: White=0.17 (very precise) /Black=0.45.  Loses game:     	---       	Black=1      Mistake:       	White=1     	Black=2      OK:         	White=7     	Black=9      Best:        	White=1     	Black=2      Brilliant:      	White=1     	---} 1-0